[Event "Titled Tuesday Blitz July 25 Early 2023"]
[White "Francisco_Ferrari"]
[Black "Fajdetic, Hrvoje"]
[BlackFideId "14501945"]
[WhiteElo "2182"]
[BlackElo "2350"]
[Result "1-0"]
[Round "8"]
[TimeControl "180+2"]
[Date "2023.07.25"]
[WhiteClock "0:00:11"]
[BlackClock "0:00:05"]
[Board "177"]

1. d4 {[%clk 0:02:55]}  d5 {[%clk 0:02:57]} 2. Nf3 {[%clk 0:02:55]}  e6 {[%clk 0:02:58]} 3. e3 {[%clk 0:02:56]}  f5 {[%clk 0:02:56]} 4. Bd3 {[%clk 0:02:49]}  Nf6 {[%clk 0:02:56]} 5. Nbd2 {[%clk 0:02:49]}  Bd6 {[%clk 0:02:55]} 6. c4 {[%clk 0:02:49]}  c6 {[%clk 0:02:55]} 7. b3 {[%clk 0:02:48]}  O-O {[%clk 0:02:55]} 8. Bb2 {[%clk 0:02:48]}  Ne4 {[%clk 0:02:56]} 9. Qc2 {[%clk 0:02:41]}  b6 {[%clk 0:02:54]} 10. Ne5 {[%clk 0:02:37]}  Bb7 {[%clk 0:02:32]} 11. g4 {[%clk 0:02:16]}  Bb4 {[%clk 0:02:27]} 12. O-O-O {[%clk 0:02:07]}  Nxf2 {[%clk 0:02:13]} 13. gxf5 {[%clk 0:02:01]}  Nxd1 {[%clk 0:02:00]} 14. fxe6 {[%clk 0:01:33]}  Qh4 {[%clk 0:01:58]} 15. Ndf3 {[%clk 0:01:20]}  Qh6 {[%clk 0:01:52]} 16. Rxd1 {[%clk 0:01:13]}  Na6 {[%clk 0:01:39]} 17. Qe2 {[%clk 0:00:46]}  Nc7 {[%clk 0:01:35]} 18. Nf7 {[%clk 0:00:26]}  Qh5 {[%clk 0:01:19]} 19. N3g5 {[%clk 0:00:17]}  g6 {[%clk 0:01:05]} 20. Qxh5 {[%clk 0:00:13]}  gxh5 {[%clk 0:01:06]} 21. Rg1 {[%clk 0:00:08]}  Rxf7 {[%clk 0:00:54]} 22. exf7+ {[%clk 0:00:07]}  Kf8 {[%clk 0:00:52]} 23. Bxh7 {[%clk 0:00:07]}  Ke7 {[%clk 0:00:44]} 24. Bg6 {[%clk 0:00:07]}  Ne6 {[%clk 0:00:33]} 25. Nxe6 {[%clk 0:00:06]}  Kxe6 {[%clk 0:00:33]} 26. Rf1 {[%clk 0:00:07]}  Rf8 {[%clk 0:00:29]} 27. a3 {[%clk 0:00:05]}  Bd6 {[%clk 0:00:28]} 28. e4 {[%clk 0:00:05]}  Bxh2 {[%clk 0:00:23]} 29. cxd5+ {[%clk 0:00:04]}  cxd5 {[%clk 0:00:24]} 30. e5 {[%clk 0:00:05]}  h4 {[%clk 0:00:18]} 31. Rf6+ {[%clk 0:00:03]}  Ke7 {[%clk 0:00:18]} 32. Rf5 {[%clk 0:00:03]}  Bc8 {[%clk 0:00:17]} 33. Rf1 {[%clk 0:00:03]}  Be6 {[%clk 0:00:16]} 34. a4 {[%clk 0:00:03]}  Bxf7 {[%clk 0:00:15]} 35. Ba3+ {[%clk 0:00:04]}  Ke8 {[%clk 0:00:14]} 36. Bxf8 {[%clk 0:00:03]}  Bxg6 {[%clk 0:00:15]} 37. Kb2 {[%clk 0:00:04]}  Be4 {[%clk 0:00:13]} 38. Bh6 {[%clk 0:00:04]}  Bg3 {[%clk 0:00:12]} 39. Bf4 {[%clk 0:00:03]}  Bxf4 {[%clk 0:00:11]} 40. Rxf4 {[%clk 0:00:04]}  h3 {[%clk 0:00:12]} 41. Rh4 {[%clk 0:00:05]}  Bg2 {[%clk 0:00:12]} 42. Kc3 {[%clk 0:00:06]}  a5 {[%clk 0:00:11]} 43. Kd2 {[%clk 0:00:06]}  Kd7 {[%clk 0:00:11]} 44. Ke3 {[%clk 0:00:07]}  Ke6 {[%clk 0:00:11]} 45. Kf2 {[%clk 0:00:07]}  Kf5 {[%clk 0:00:11]} 46. Kg3 {[%clk 0:00:08]}  Bf1 {[%clk 0:00:08]} 47. Rxh3 {[%clk 0:00:08]}  Bxh3 {[%clk 0:00:07]} 48. Kxh3 {[%clk 0:00:09]}  Ke6 {[%clk 0:00:05]} 49. Kg4 {[%clk 0:00:10]}  b5 {[%clk 0:00:05]} 50. axb5 {[%clk 0:00:10]}  Ke7 {[%clk 0:00:05]} 51. Kf5 {[%clk 0:00:10]}  Kf7 {[%clk 0:00:06]} 52. e6+ {[%clk 0:00:11]}  Ke7 {[%clk 0:00:05]} 53. Ke5 {[%clk 0:00:11]} 1-0


[Site "https://www.chess.com"]

[Event "Titled Tuesday Blitz July 25 Early 2023"]
[White "Ncatt"]
[Black "Sailer, Mike"]
[BlackFideId "2012901"]
[WhiteElo "2332"]
[BlackElo "2166"]
[Result "1-0"]
[Round "8"]
[TimeControl "180+2"]
[Date "2023.07.25"]
[WhiteClock "0:02:08"]
[BlackClock "0:00:00"]
[Board "178"]

1. e4 {[%clk 0:03:00]}  d5 {[%clk 0:02:59]} 2. exd5 {[%clk 0:03:00]}  Qxd5 {[%clk 0:02:59]} 3. Nc3 {[%clk 0:03:01]}  Qd6 {[%clk 0:03:00]} 4. Nf3 {[%clk 0:03:00]}  c6 {[%clk 0:02:59]} 5. d4 {[%clk 0:02:59]}  Bg4 {[%clk 0:02:58]} 6. Be2 {[%clk 0:02:59]}  Nf6 {[%clk 0:02:58]} 7. h3 {[%clk 0:02:58]}  Bh5 {[%clk 0:02:58]} 8. O-O {[%clk 0:02:59]}  e6 {[%clk 0:02:58]} 9. Bg5 {[%clk 0:02:57]}  Nbd7 {[%clk 0:02:51]} 10. Qd2 {[%clk 0:02:57]}  Qc7 {[%clk 0:02:51]} 11. Rad1 {[%clk 0:02:54]}  Bd6 {[%clk 0:02:49]} 12. Rfe1 {[%clk 0:02:52]}  O-O {[%clk 0:02:46]} 13. a3 {[%clk 0:02:50]}  a5 {[%clk 0:02:44]} 14. Qe3 {[%clk 0:02:48]}  h6 {[%clk 0:02:32]} 15. Bxf6 {[%clk 0:02:43]}  Nxf6 {[%clk 0:02:18]} 16. Ne5 {[%clk 0:02:43]}  Bxe2 {[%clk 0:02:13]} 17. Rxe2 {[%clk 0:02:43]}  Nd5 {[%clk 0:02:04]} 18. Nxd5 {[%clk 0:02:43]}  cxd5 {[%clk 0:02:04]} 19. c3 {[%clk 0:02:41]}  b5 {[%clk 0:01:59]} 20. Rc1 {[%clk 0:02:40]}  Bxe5 {[%clk 0:01:44]} 21. dxe5 {[%clk 0:02:38]}  Rfc8 {[%clk 0:01:40]} 22. Rd2 {[%clk 0:02:32]}  Qc4 {[%clk 0:01:24]} 23. Rd4 {[%clk 0:02:31]}  Qb3 {[%clk 0:01:24]} 24. Rg4 {[%clk 0:02:31]}  Rc4 {[%clk 0:01:11]} 25. Rg3 {[%clk 0:02:19]}  Kf8 {[%clk 0:00:39]} 26. Qd2 {[%clk 0:02:19]}  Re4 {[%clk 0:00:29]} 27. c4 {[%clk 0:02:16]}  Qa2 {[%clk 0:00:15]} 28. cxd5 {[%clk 0:02:16]}  exd5 {[%clk 0:00:09]} 29. Rc7 {[%clk 0:02:12]}  Rxe5 {[%clk 0:00:05]} 30. Qf4 {[%clk 0:02:11]}  Re7 {[%clk 0:00:02]} 31. Qd6 {[%clk 0:02:09]}  Qb1+ {[%clk 0:00:01]} 32. Kh2 {[%clk 0:02:08]}  Re8 {[%clk 0:00:00]} 33. Re3 {[%clk 0:02:08]} 1-0


[Site "https://www.chess.com"]

[Event "Titled Tuesday Blitz July 25 Early 2023"]
[White "Sanudula, K M Dahamdi"]
[Black "Makhmudov, Shukhrat"]
[WhiteFideId "9932470"]
[BlackFideId "14200775"]
[WhiteElo "2165"]
[BlackElo "2326"]
[Result "0-1"]
[Round "8"]
[TimeControl "180+2"]
[Date "2023.07.25"]
[WhiteClock "0:02:22"]
[BlackClock "0:01:59"]
[Board "179"]

1. d4 {[%clk 0:03:00]}  Nf6 {[%clk 0:02:59]} 2. e3 {[%clk 0:03:00]}  d5 {[%clk 0:03:00]} 3. Bd3 {[%clk 0:03:00]}  c5 {[%clk 0:03:00]} 4. c3 {[%clk 0:03:00]}  Nc6 {[%clk 0:02:59]} 5. f4 {[%clk 0:03:00]}  cxd4 {[%clk 0:02:58]} 6. exd4 {[%clk 0:02:59]}  Bg4 {[%clk 0:02:57]} 7. Nf3 {[%clk 0:02:59]}  e6 {[%clk 0:02:57]} 8. h3 {[%clk 0:02:59]}  Bxf3 {[%clk 0:02:56]} 9. Qxf3 {[%clk 0:02:58]}  Be7 {[%clk 0:02:57]} 10. Nd2 {[%clk 0:02:59]}  O-O {[%clk 0:02:57]} 11. O-O {[%clk 0:02:59]}  a6 {[%clk 0:02:57]} 12. Qe2 {[%clk 0:02:58]}  b5 {[%clk 0:02:58]} 13. Nf3 {[%clk 0:02:58]}  Qc7 {[%clk 0:02:56]} 14. Ne5 {[%clk 0:02:58]}  g6 {[%clk 0:02:54]} 15. g4 {[%clk 0:02:58]}  Nd7 {[%clk 0:02:51]} 16. g5 {[%clk 0:02:58]}  Rfe8 {[%clk 0:02:46]} 17. h4 {[%clk 0:02:57]}  Bf8 {[%clk 0:02:46]} 18. Qg4 {[%clk 0:02:56]}  Bg7 {[%clk 0:02:46]} 19. Bd2 {[%clk 0:02:55]}  Ra7 {[%clk 0:02:36]} 20. h5 {[%clk 0:02:54]}  Qb6 {[%clk 0:02:33]} 21. Kg2 {[%clk 0:02:54]}  Nxd4 {[%clk 0:02:27]} 22. cxd4 {[%clk 0:02:53]}  Qxd4 {[%clk 0:02:27]} 23. Bc3 {[%clk 0:02:50]}  Nxe5 {[%clk 0:02:26]} 24. Bxd4 {[%clk 0:02:42]}  Nxg4 {[%clk 0:02:26]} 25. Bxg7 {[%clk 0:02:39]}  Kxg7 {[%clk 0:02:22]} 26. h6+ {[%clk 0:02:34]}  Kf8 {[%clk 0:02:21]} 27. Rae1 {[%clk 0:02:29]}  d4 {[%clk 0:02:21]} 28. Re4 {[%clk 0:02:25]}  Ne3+ {[%clk 0:02:18]} 29. Kf2 {[%clk 0:02:25]}  Nxf1 {[%clk 0:02:18]} 30. Kxf1 {[%clk 0:02:26]}  Rd8 {[%clk 0:02:18]} 31. Ke2 {[%clk 0:02:26]}  Rc7 {[%clk 0:02:18]} 32. Kd2 {[%clk 0:02:26]}  Ke7 {[%clk 0:02:17]} 33. Re1 {[%clk 0:02:26]}  Rd6 {[%clk 0:02:17]} 34. Rb1 {[%clk 0:02:26]}  Rc5 {[%clk 0:02:16]} 35. Re1 {[%clk 0:02:26]}  e5 {[%clk 0:02:15]} 36. fxe5 {[%clk 0:02:22]}  Rdd5 {[%clk 0:02:14]} 37. Re4 {[%clk 0:02:22]}  Rxe5 {[%clk 0:02:06]} 38. Rxd4 {[%clk 0:02:22]}  Rxg5 {[%clk 0:02:06]} 39. Re4+ {[%clk 0:02:22]}  Rce5 {[%clk 0:01:59]} 40. Rd4 {[%clk 0:02:22]} 0-1


[Site "https://www.chess.com"]

[Event "Titled Tuesday Blitz July 25 Early 2023"]
[White "Prydun, Andriy"]
[Black "Cardenas Carbajal, Nilson"]
[WhiteFideId "14145898"]
[BlackFideId "8401128"]
[WhiteElo "2317"]
[BlackElo "2157"]
[Result "1-0"]
[Round "8"]
[TimeControl "180+2"]
[Date "2023.07.25"]
[WhiteClock "0:01:36"]
[BlackClock "0:00:44"]
[Board "180"]

1. e4 {[%clk 0:03:00]}  e5 {[%clk 0:02:58]} 2. Nf3 {[%clk 0:02:57]}  Nc6 {[%clk 0:02:58]} 3. Nc3 {[%clk 0:02:55]}  Nf6 {[%clk 0:02:57]} 4. Bb5 {[%clk 0:02:55]}  Bb4 {[%clk 0:02:56]} 5. Nd5 {[%clk 0:02:54]}  Bd6 {[%clk 0:02:37]} 6. c3 {[%clk 0:02:49]}  a6 {[%clk 0:02:27]} 7. Bc4 {[%clk 0:02:45]}  Nxd5 {[%clk 0:02:17]} 8. exd5 {[%clk 0:02:40]}  Ne7 {[%clk 0:02:14]} 9. d4 {[%clk 0:02:39]}  Ng6 {[%clk 0:02:07]} 10. Bg5 {[%clk 0:02:25]}  Be7 {[%clk 0:01:55]} 11. Bxe7 {[%clk 0:02:24]}  Qxe7 {[%clk 0:01:55]} 12. O-O {[%clk 0:02:25]}  O-O {[%clk 0:01:51]} 13. Re1 {[%clk 0:02:19]}  d6 {[%clk 0:01:48]} 14. Bd3 {[%clk 0:02:08]}  Bg4 {[%clk 0:01:46]} 15. h3 {[%clk 0:01:54]}  Bxf3 {[%clk 0:01:24]} 16. Qxf3 {[%clk 0:01:54]}  Nf4 {[%clk 0:01:24]} 17. Qxf4 {[%clk 0:01:54]}  f5 {[%clk 0:01:13]} 18. dxe5 {[%clk 0:01:53]}  g5 {[%clk 0:01:08]} 19. Qd4 {[%clk 0:01:52]}  dxe5 {[%clk 0:01:02]} 20. Rxe5 {[%clk 0:01:52]}  Qf7 {[%clk 0:01:02]} 21. Rae1 {[%clk 0:01:48]}  f4 {[%clk 0:01:00]} 22. Re7 {[%clk 0:01:47]}  Rae8 {[%clk 0:00:56]} 23. Bxh7+ {[%clk 0:01:39]}  Qxh7 {[%clk 0:00:44]} 24. Rxe8 {[%clk 0:01:36]} 1-0


[Site "https://www.chess.com"]

[Event "Titled Tuesday Blitz July 25 Early 2023"]
[White "SicilianPanzer"]
[Black "djjohnnywoo"]
[WhiteElo "2311"]
[BlackElo "2145"]
[Result "1-0"]
[Round "8"]
[TimeControl "180+2"]
[Date "2023.07.25"]
[WhiteClock "0:00:02"]
[BlackClock "0:00:12"]
[Board "181"]

1. e4 {[%clk 0:03:00]}  c5 {[%clk 0:02:58]} 2. Nf3 {[%clk 0:03:00]}  g6 {[%clk 0:02:56]} 3. d4 {[%clk 0:02:54]}  cxd4 {[%clk 0:02:56]} 4. Nxd4 {[%clk 0:02:54]}  Bg7 {[%clk 0:02:56]} 5. c4 {[%clk 0:02:54]}  Nc6 {[%clk 0:02:54]} 6. Be3 {[%clk 0:02:53]}  d6 {[%clk 0:02:54]} 7. Nc3 {[%clk 0:02:52]}  Nf6 {[%clk 0:02:52]} 8. Be2 {[%clk 0:02:51]}  O-O {[%clk 0:02:51]} 9. O-O {[%clk 0:02:51]}  Nxd4 {[%clk 0:02:49]} 10. Bxd4 {[%clk 0:02:50]}  Be6 {[%clk 0:02:49]} 11. f4 {[%clk 0:02:48]}  Rc8 {[%clk 0:02:42]} 12. b3 {[%clk 0:02:44]}  Qa5 {[%clk 0:02:09]} 13. Qd3 {[%clk 0:02:32]}  Nd7 {[%clk 0:01:54]} 14. Bxg7 {[%clk 0:02:18]}  Kxg7 {[%clk 0:01:52]} 15. Qd4+ {[%clk 0:01:47]}  f6 {[%clk 0:01:35]} 16. Kh1 {[%clk 0:01:28]}  Qc5 {[%clk 0:01:30]} 17. Qd2 {[%clk 0:01:26]}  f5 {[%clk 0:01:20]} 18. Bf3 {[%clk 0:01:17]}  Nf6 {[%clk 0:01:18]} 19. Rae1 {[%clk 0:01:10]}  Ng4 {[%clk 0:01:00]} 20. Bxg4 {[%clk 0:00:53]}  fxg4 {[%clk 0:00:57]} 21. f5 {[%clk 0:00:47]}  Bf7 {[%clk 0:00:51]} 22. e5 {[%clk 0:00:32]}  gxf5 {[%clk 0:00:48]} 23. Qg5+ {[%clk 0:00:30]}  Bg6 {[%clk 0:00:48]} 24. Qxe7+ {[%clk 0:00:26]}  Rf7 {[%clk 0:00:47]} 25. Qxd6 {[%clk 0:00:26]}  Qa5 {[%clk 0:00:45]} 26. e6 {[%clk 0:00:12]}  Rd8 {[%clk 0:00:19]} 27. Qg3 {[%clk 0:00:11]}  Re7 {[%clk 0:00:18]} 28. Nd5 {[%clk 0:00:10]}  Rxd5 {[%clk 0:00:18]} 29. cxd5 {[%clk 0:00:09]}  Qxd5 {[%clk 0:00:18]} 30. Qc3+ {[%clk 0:00:09]}  Kh6 {[%clk 0:00:17]} 31. Qf6 {[%clk 0:00:09]}  Rc7 {[%clk 0:00:16]} 32. e7 {[%clk 0:00:08]}  Rc2 {[%clk 0:00:16]} 33. Qh4+ {[%clk 0:00:07]}  Kg7 {[%clk 0:00:16]} 34. Qg3 {[%clk 0:00:05]}  f4 {[%clk 0:00:16]} 35. Qxg4 {[%clk 0:00:05]}  Qd2 {[%clk 0:00:16]} 36. e8=Q {[%clk 0:00:03]}  f3 {[%clk 0:00:14]} 37. Qe7+ {[%clk 0:00:02]}  Kh6 {[%clk 0:00:13]} 38. Qgh4+ {[%clk 0:00:01]}  Bh5 {[%clk 0:00:12]} 39. Qef6# {[%clk 0:00:02]} 1-0


[Site "https://www.chess.com"]

[Event "Titled Tuesday Blitz July 25 Early 2023"]
[White "Larina, Maria"]
[Black "BenchGM"]
[WhiteFideId "24113182"]
[WhiteElo "2119"]
[BlackElo "2302"]
[Result "1-0"]
[Round "8"]
[TimeControl "180+2"]
[Date "2023.07.25"]
[WhiteClock "0:00:45"]
[BlackClock "0:00:00"]
[Board "182"]

1. e4 {[%clk 0:03:00]}  c5 {[%clk 0:02:51]} 2. Nc3 {[%clk 0:03:00]}  Nc6 {[%clk 0:02:45]} 3. g3 {[%clk 0:03:00]}  e6 {[%clk 0:02:45]} 4. Bg2 {[%clk 0:03:00]}  Nf6 {[%clk 0:02:45]} 5. Nf3 {[%clk 0:02:56]}  d5 {[%clk 0:02:44]} 6. exd5 {[%clk 0:02:56]}  exd5 {[%clk 0:02:44]} 7. O-O {[%clk 0:02:56]}  d4 {[%clk 0:02:43]} 8. Re1+ {[%clk 0:02:56]}  Be7 {[%clk 0:02:43]} 9. Nb1 {[%clk 0:02:39]}  O-O {[%clk 0:02:42]} 10. d3 {[%clk 0:02:39]}  Re8 {[%clk 0:02:38]} 11. a4 {[%clk 0:02:39]}  h6 {[%clk 0:02:26]} 12. Nbd2 {[%clk 0:02:39]}  Be6 {[%clk 0:02:25]} 13. b3 {[%clk 0:02:37]}  Rc8 {[%clk 0:02:22]} 14. Ba3 {[%clk 0:02:32]}  b6 {[%clk 0:02:21]} 15. Nc4 {[%clk 0:02:27]}  a6 {[%clk 0:02:14]} 16. Nfe5 {[%clk 0:02:22]}  Nxe5 {[%clk 0:02:14]} 17. Nxe5 {[%clk 0:02:22]}  Nd5 {[%clk 0:02:08]} 18. Qd2 {[%clk 0:02:09]}  Bf6 {[%clk 0:02:01]} 19. Nc4 {[%clk 0:02:00]}  Bg5 {[%clk 0:01:43]} 20. f4 {[%clk 0:01:55]}  Bf6 {[%clk 0:01:43]} 21. Qf2 {[%clk 0:01:35]}  Ne3 {[%clk 0:00:36]} 22. Be4 {[%clk 0:01:33]}  b5 {[%clk 0:00:28]} 23. axb5 {[%clk 0:01:32]}  axb5 {[%clk 0:00:29]} 24. Ne5 {[%clk 0:01:30]}  Qd6 {[%clk 0:00:17]} 25. Bc1 {[%clk 0:01:15]}  Bxe5 {[%clk 0:00:15]} 26. fxe5 {[%clk 0:01:15]}  Qxe5 {[%clk 0:00:16]} 27. Bxe3 {[%clk 0:01:14]}  dxe3 {[%clk 0:00:17]} 28. Qxe3 {[%clk 0:01:14]}  Qc3 {[%clk 0:00:16]} 29. Qf2 {[%clk 0:01:09]}  c4 {[%clk 0:00:15]} 30. bxc4 {[%clk 0:01:09]}  bxc4 {[%clk 0:00:16]} 31. Ra7 {[%clk 0:01:01]}  cxd3 {[%clk 0:00:15]} 32. cxd3 {[%clk 0:01:02]}  Rcd8 {[%clk 0:00:11]} 33. Rf1 {[%clk 0:01:02]}  Qd4 {[%clk 0:00:11]} 34. Qxd4 {[%clk 0:01:00]}  Rxd4 {[%clk 0:00:12]} 35. Rc1 {[%clk 0:00:58]}  g6 {[%clk 0:00:12]} 36. Rcc7 {[%clk 0:00:58]}  Red8 {[%clk 0:00:09]} 37. Kf2 {[%clk 0:00:57]}  R4d6 {[%clk 0:00:08]} 38. Ke3 {[%clk 0:00:57]}  Re8 {[%clk 0:00:08]} 39. Kf2 {[%clk 0:00:54]}  f5 {[%clk 0:00:07]} 40. Bc6 {[%clk 0:00:52]}  Rb8 {[%clk 0:00:05]} 41. Rg7+ {[%clk 0:00:51]}  Kf8 {[%clk 0:00:06]} 42. Rh7 {[%clk 0:00:50]}  Rxc6 {[%clk 0:00:05]} 43. Rxh6 {[%clk 0:00:48]}  Bf7 {[%clk 0:00:04]} 44. Rh8+ {[%clk 0:00:48]}  Bg8 {[%clk 0:00:03]} 45. Ke3 {[%clk 0:00:46]}  Re8+ {[%clk 0:00:03]} 46. Kf4 {[%clk 0:00:46]}  Rce6 {[%clk 0:00:04]} 47. Kg5 {[%clk 0:00:46]}  R8e7 {[%clk 0:00:04]} 48. Ra8+ {[%clk 0:00:45]}  Kg7 {[%clk 0:00:04]} 49. Rhxg8+ {[%clk 0:00:46]}  Kh7 {[%clk 0:00:02]} 50. Rh8+ {[%clk 0:00:47]}  Kg7 {[%clk 0:00:03]} 51. Rag8+ {[%clk 0:00:47]}  Kf7 {[%clk 0:00:03]} 52. Rf8+ {[%clk 0:00:47]}  Kg7 {[%clk 0:00:03]} 53. Rhg8+ {[%clk 0:00:48]}  Kh7 {[%clk 0:00:03]} 54. Rd8 {[%clk 0:00:47]}  f4 {[%clk 0:00:03]} 55. gxf4 {[%clk 0:00:47]}  Rc6 {[%clk 0:00:02]} 56. d4 {[%clk 0:00:46]}  Ra6 {[%clk 0:00:02]} 57. d5 {[%clk 0:00:46]}  Ra5 {[%clk 0:00:00]} 58. Kg4 {[%clk 0:00:45]} 1-0


[Site "https://www.chess.com"]

[Event "Titled Tuesday Blitz July 25 Early 2023"]
[White "Schut, Han"]
[Black "Mikheeva, Galina"]
[WhiteFideId "1005561"]
[BlackFideId "44108320"]
[WhiteElo "2297"]
[BlackElo "2012"]
[Result "0-1"]
[Round "8"]
[TimeControl "180+2"]
[Date "2023.07.25"]
[WhiteClock "0:00:04"]
[BlackClock "0:00:24"]
[Board "183"]

1. e4 {[%clk 0:03:00]}  e5 {[%clk 0:02:57]} 2. Nf3 {[%clk 0:02:58]}  Nc6 {[%clk 0:02:58]} 3. Bc4 {[%clk 0:02:59]}  Bc5 {[%clk 0:02:58]} 4. c3 {[%clk 0:02:59]}  Nf6 {[%clk 0:02:58]} 5. d4 {[%clk 0:03:00]}  exd4 {[%clk 0:02:59]} 6. b4 {[%clk 0:03:00]}  Be7 {[%clk 0:02:57]} 7. e5 {[%clk 0:03:00]}  Ne4 {[%clk 0:02:55]} 8. b5 {[%clk 0:02:42]}  Na5 {[%clk 0:02:49]} 9. Bd3 {[%clk 0:02:39]}  Nxc3 {[%clk 0:02:46]} 10. Nxc3 {[%clk 0:02:39]}  Bb4 {[%clk 0:02:41]} 11. O-O {[%clk 0:02:05]}  dxc3 {[%clk 0:02:36]} 12. a3 {[%clk 0:01:59]}  Be7 {[%clk 0:02:34]} 13. Qa4 {[%clk 0:01:58]}  b6 {[%clk 0:02:33]} 14. Qg4 {[%clk 0:01:41]}  Kf8 {[%clk 0:02:23]} 15. Ng5 {[%clk 0:01:27]}  Bb7 {[%clk 0:02:20]} 16. Nxh7+ {[%clk 0:01:23]}  Kg8 {[%clk 0:02:18]} 17. Ng5 {[%clk 0:01:11]}  Bd5 {[%clk 0:02:12]} 18. Ne4 {[%clk 0:00:52]}  Nb3 {[%clk 0:02:07]} 19. Rb1 {[%clk 0:00:47]}  Nxc1 {[%clk 0:02:06]} 20. Rbxc1 {[%clk 0:00:46]}  Rh4 {[%clk 0:02:02]} 21. Qf3 {[%clk 0:00:37]}  Bg5 {[%clk 0:01:50]} 22. Rxc3 {[%clk 0:00:36]}  Rf4 {[%clk 0:01:43]} 23. Qe2 {[%clk 0:00:24]}  Bh6 {[%clk 0:01:32]} 24. g3 {[%clk 0:00:24]}  Rf5 {[%clk 0:01:26]} 25. f4 {[%clk 0:00:24]}  c6 {[%clk 0:01:16]} 26. Nf6+ {[%clk 0:00:22]}  Rxf6 {[%clk 0:01:14]} 27. exf6 {[%clk 0:00:22]}  Qxf6 {[%clk 0:01:15]} 28. Qe5 {[%clk 0:00:20]}  Qxe5 {[%clk 0:01:13]} 29. fxe5 {[%clk 0:00:21]}  Re8 {[%clk 0:01:12]} 30. Re1 {[%clk 0:00:20]}  Bd2 {[%clk 0:01:09]} 31. Rcc1 {[%clk 0:00:17]}  Bxc1 {[%clk 0:01:09]} 32. Rxc1 {[%clk 0:00:18]}  Rxe5 {[%clk 0:01:08]} 33. bxc6 {[%clk 0:00:19]}  dxc6 {[%clk 0:01:08]} 34. Kf2 {[%clk 0:00:19]}  Kf8 {[%clk 0:01:08]} 35. a4 {[%clk 0:00:20]}  Ke7 {[%clk 0:01:07]} 36. Be2 {[%clk 0:00:19]}  Kd6 {[%clk 0:01:07]} 37. a5 {[%clk 0:00:19]}  Re4 {[%clk 0:01:05]} 38. a6 {[%clk 0:00:18]}  Ra4 {[%clk 0:01:04]} 39. h4 {[%clk 0:00:18]}  Ra2 {[%clk 0:01:04]} 40. Ke1 {[%clk 0:00:17]}  b5 {[%clk 0:01:03]} 41. h5 {[%clk 0:00:17]}  Rxa6 {[%clk 0:01:02]} 42. g4 {[%clk 0:00:18]}  Ra3 {[%clk 0:01:01]} 43. Kf2 {[%clk 0:00:16]}  a5 {[%clk 0:01:00]} 44. g5 {[%clk 0:00:16]}  Rh3 {[%clk 0:00:56]} 45. Bg4 {[%clk 0:00:13]}  Rh2+ {[%clk 0:00:55]} 46. Kg3 {[%clk 0:00:14]}  Rg2+ {[%clk 0:00:55]} 47. Kh3 {[%clk 0:00:14]}  Rf2 {[%clk 0:00:35]} 48. h6 {[%clk 0:00:14]}  gxh6 {[%clk 0:00:33]} 49. gxh6 {[%clk 0:00:15]}  Rf6 {[%clk 0:00:32]} 50. Kg3 {[%clk 0:00:07]}  Rxh6 {[%clk 0:00:32]} 51. Rf1 {[%clk 0:00:08]}  Rg6 {[%clk 0:00:31]} 52. Kh4 {[%clk 0:00:07]}  a4 {[%clk 0:00:26]} 53. Rxf7 {[%clk 0:00:04]}  Bxf7 {[%clk 0:00:24]} 0-1


[Site "https://www.chess.com"]

[Event "Titled Tuesday Blitz July 25 Early 2023"]
[White "KSho99"]
[Black "FREDERICKtheMATE"]
[WhiteElo "2207"]
[BlackElo "2361"]
[Result "0-1"]
[Round "8"]
[TimeControl "180+2"]
[Date "2023.07.25"]
[WhiteClock "0:00:00"]
[BlackClock "0:00:41"]
[Board "184"]

1. d4 {[%clk 0:03:00]}  c5 {[%clk 0:03:00]} 2. d5 {[%clk 0:02:59]}  g6 {[%clk 0:03:00]} 3. e4 {[%clk 0:02:58]}  Bg7 {[%clk 0:03:01]} 4. Nc3 {[%clk 0:02:54]}  d6 {[%clk 0:03:01]} 5. h3 {[%clk 0:02:48]}  a6 {[%clk 0:02:58]} 6. a4 {[%clk 0:02:47]}  f5 {[%clk 0:02:56]} 7. Nf3 {[%clk 0:02:41]}  Nf6 {[%clk 0:02:52]} 8. Bd3 {[%clk 0:02:34]}  fxe4 {[%clk 0:02:50]} 9. Nxe4 {[%clk 0:02:25]}  O-O {[%clk 0:02:47]} 10. Neg5 {[%clk 0:01:56]}  h6 {[%clk 0:02:41]} 11. Ne6 {[%clk 0:01:47]}  Bxe6 {[%clk 0:02:40]} 12. dxe6 {[%clk 0:01:47]}  g5 {[%clk 0:02:40]} 13. Bg6 {[%clk 0:01:08]}  Nc6 {[%clk 0:02:34]} 14. Bf7+ {[%clk 0:00:55]}  Kh8 {[%clk 0:02:32]} 15. h4 {[%clk 0:00:32]}  g4 {[%clk 0:02:30]} 16. Ng5 {[%clk 0:00:30]}  Qb6 {[%clk 0:02:13]} 17. Ra3 {[%clk 0:00:09]}  Nd8 {[%clk 0:02:05]} 18. Rg3 {[%clk 0:00:08]}  Qb4+ {[%clk 0:02:01]} 19. c3 {[%clk 0:00:07]}  Qc4 {[%clk 0:02:00]} 20. Qc2 {[%clk 0:00:05]}  Nxf7 {[%clk 0:01:55]} 21. Nxf7+ {[%clk 0:00:05]}  Kg8 {[%clk 0:01:53]} 22. Nxh6+ {[%clk 0:00:04]}  Bxh6 {[%clk 0:01:51]} 23. Bxh6 {[%clk 0:00:05]}  Qxe6+ {[%clk 0:01:51]} 24. Re3 {[%clk 0:00:05]}  Qf7 {[%clk 0:01:45]} 25. Bxf8 {[%clk 0:00:05]}  Rxf8 {[%clk 0:01:44]} 26. h5 {[%clk 0:00:05]}  Nxh5 {[%clk 0:01:41]} 27. Qe4 {[%clk 0:00:05]}  Nf4 {[%clk 0:01:30]} 28. Qxe7 {[%clk 0:00:03]}  Nxg2+ {[%clk 0:01:28]} 29. Ke2 {[%clk 0:00:03]}  Nxe3 {[%clk 0:01:27]} 30. Qxf7+ {[%clk 0:00:02]}  Rxf7 {[%clk 0:01:26]} 31. fxe3 {[%clk 0:00:03]}  Rf6 {[%clk 0:01:22]} 32. Rg1 {[%clk 0:00:03]}  Rg6 {[%clk 0:01:22]} 33. Rg3 {[%clk 0:00:03]}  Kf7 {[%clk 0:01:23]} 34. Kd3 {[%clk 0:00:04]}  d5 {[%clk 0:01:21]} 35. e4 {[%clk 0:00:04]}  Ke6 {[%clk 0:01:21]} 36. exd5+ {[%clk 0:00:03]}  Kxd5 {[%clk 0:01:21]} 37. Ke3 {[%clk 0:00:03]}  Ke5 {[%clk 0:01:22]} 38. b4 {[%clk 0:00:04]}  c4 {[%clk 0:01:19]} 39. a5 {[%clk 0:00:03]}  Rg8 {[%clk 0:01:17]} 40. Rg2 {[%clk 0:00:03]}  g3 {[%clk 0:01:17]} 41. Kf3 {[%clk 0:00:03]}  Kf5 {[%clk 0:01:16]} 42. Ke3 {[%clk 0:00:02]}  Kg4 {[%clk 0:01:16]} 43. Kd4 {[%clk 0:00:02]}  Kh3 {[%clk 0:01:16]} 44. Rg1 {[%clk 0:00:01]}  g2 {[%clk 0:01:12]} 45. Kxc4 {[%clk 0:00:02]}  Kh2 {[%clk 0:01:12]} 46. Rd1 {[%clk 0:00:02]}  g1=Q {[%clk 0:01:11]} 47. Rxg1 {[%clk 0:00:02]}  Kxg1 {[%clk 0:01:12]} 48. Kc5 {[%clk 0:00:02]}  Rg6 {[%clk 0:01:11]} 49. c4 {[%clk 0:00:03]}  Kf2 {[%clk 0:01:10]} 50. b5 {[%clk 0:00:03]}  axb5 {[%clk 0:01:01]} 51. cxb5 {[%clk 0:00:03]}  Ke3 {[%clk 0:00:59]} 52. b6 {[%clk 0:00:02]}  Ke4 {[%clk 0:00:42]} 53. a6 {[%clk 0:00:02]}  bxa6 {[%clk 0:00:40]} 54. b7 {[%clk 0:00:02]}  Rg8 {[%clk 0:00:40]} 55. Kb6 {[%clk 0:00:02]}  Kd5 {[%clk 0:00:40]} 56. Kxa6 {[%clk 0:00:02]}  Kc6 {[%clk 0:00:41]} 57. Ka7 {[%clk 0:00:01]}  Kc7 {[%clk 0:00:41]} 58. Ka6 {[%clk 0:00:01]}  Rb8 {[%clk 0:00:41]} 59. Ka7 {[%clk 0:00:01]}  Rxb7+ {[%clk 0:00:42]} 60. Ka8 {[%clk 0:00:00]}  Rb1 {[%clk 0:00:41]} 0-1


[Site "https://www.chess.com"]